bitfinex/quotes_BTCUSD_20240811
["timestamp","ask_amount","ask_price","bid_price","bid_amount"]
[1723416529780,0.0279894,59080.0,59079.0,1.57472524]
[1723416529983,0.0279894,59080.0,59079.0,1.59916498]
[1723416530197,0.0279894,59080.0,59079.0,1.63548329]
[1723416530418,0.0299894,59080.0,59079.0,1.57616498]
[1723416530645,0.0299894,59080.0,59079.0,1.59016498]
[1723416530853,0.0279894,59080.0,59079.0,1.57616498]
[1723416531106,0.0299894,59080.0,59079.0,1.57972336]
[1723416531320,0.0279894,59080.0,59079.0,1.57972336]
[1723416531540,0.0279894,59080.0,59079.0,1.61604128]
[1723416531762,0.0279894,59080.0,59079.0,1.57072336]
[1723416531994,0.0279894,59080.0,59079.0,1.58072336]
[1723416532265,0.000828,59082.0,59081.0,1.523331]
[1723416532484,0.000828,59082.0,59081.0,2.01003339]
[1723416532708,0.000828,59082.0,59081.0,2.03821828]
[1723416532932,0.000828,59082.0,59081.0,1.89764592]
[1723416533199,0.000828,59082.0,59081.0,2.03821051]
[1723416533429,0.000828,59082.0,59081.0,0.19987884]
[1723416533430,0.47357878,59082.0,59081.0,0.19987884]
[1723416533644,0.30976386,59082.0,59081.0,0.15256459]
[1723416533885,0.30976386,59082.0,59081.0,0.32182359]
[1723416533886,0.31176386,59082.0,59081.0,0.32182359]
[1723416534121,0.31176386,59082.0,59081.0,0.15256459]
[1723416534339,0.30976386,59082.0,59081.0,0.66034159]
[1723416534592,0.30976386,59082.0,59081.0,1.01287854]
[1723416534814,0.30976386,59082.0,59081.0,1.18569346]
[1723416534815,0.010828,59082.0,59081.0,1.18569346]
[1723416535033,0.010828,59082.0,59081.0,1.52421146]
[1723416535489,0.010828,59082.0,59081.0,1.51220304]
[1723416535721,1.65837078,59082.0,59081.0,0.14057512]
[1723416535961,1.65837078,59082.0,59060.0,0.0847]
[1723416535962,0.0079894,59066.0,59065.0,0.2083]
[1723416536174,0.21883586,59066.0,59065.0,0.51821552]
[1723416536384,0.0279894,59066.0,59065.0,1.19543552]
[1723416537245,0.0279894,59066.0,59065.0,1.22851314]
[1723416537463,0.0279894,59066.0,59065.0,0.88990314]
[1723416537686,0.0279894,59066.0,59065.0,0.85682552]
[1723416538114,0.0279894,59066.0,59065.0,0.86882971]
[1723416538569,0.0279894,59066.0,59065.0,0.728215]
[1723416538782,0.0279894,59066.0,59065.0,0.87282924]
[1723416538995,0.0279894,59066.0,59065.0,0.36491424]
[1723416538996,0.0299894,59066.0,59065.0,0.36491424]
[1723416539236,0.0299894,59066.0,59065.0,0.89582924]
[1723416539428,0.0299894,59066.0,59065.0,0.87982924]
[1723416539759,0.0299894,59066.0,59065.0,0.753215]
[1723416539978,0.0299894,59066.0,59065.0,0.88682971]
[1723416540204,0.0299894,59066.0,59065.0,0.89182971]
[1723416540641,0.0299894,59066.0,59065.0,0.89882971]
[1723416540860,0.0279894,59066.0,59065.0,0.89974051]
[1723416541083,0.0279894,59066.0,59065.0,0.7591258]
[1723416541292,0.0279894,59066.0,59065.0,0.89974051]
[1723416541501,0.0299894,59066.0,59065.0,0.56113051]
[1723416542168,0.1992914,59066.0,59065.0,0.16052551]
[1723416542416,1.0745994,59066.0,59065.0,0.16052551]
[1723416542620,0.3973914,59066.0,59065.0,0.0199108]
[1723416542830,0.7359954,59066.0,59065.0,0.0199108]
[1723416543514,1.0745994,59066.0,59065.0,0.0199108]
[1723416543971,1.57701832,59066.0,59065.0,0.0199108]
[1723416544192,1.23841432,59066.0,59065.0,0.0199108]
[1723416544839,1.57701832,59066.0,59065.0,0.0199108]
[1723416545288,1.58701832,59066.0,59065.0,0.0199108]
[1723416545511,1.57701832,59066.0,59065.0,0.0129108]
[1723416545743,1.57701832,59066.0,59065.0,0.0009108]
[1723416546027,1.23941432,59066.0,59065.0,0.0009108]
[1723416546704,1.57901832,59066.0,59065.0,0.0019108]
[1723416546934,1.57701832,59066.0,59065.0,0.0009108]
[1723416547161,1.57901832,59066.0,59065.0,0.0019108]
[1723416547383,1.58101832,59066.0,59065.0,0.0019108]
[1723416548642,1.24041432,59066.0,59065.0,0.0009108]
[1723416548854,1.24241432,59066.0,59065.0,0.0019108]
[1723416549056,1.23941432,59066.0,59065.0,0.0019108]
[1723416549477,1.23941432,59066.0,59065.0,0.0009108]
[1723416549692,1.24041432,59066.0,59065.0,0.0019108]
[1723416549912,1.23941432,59066.0,59065.0,0.0019108]
[1723416550120,1.24041432,59066.0,59065.0,0.0009108]
[1723416550326,1.57801832,59066.0,59065.0,0.0009108]
[1723416550540,1.57901832,59066.0,59065.0,0.0019108]
[1723416550751,1.24141432,59066.0,59065.0,0.0019108]
[1723416550961,1.25141432,59066.0,59065.0,0.0019108]
[1723416551174,0.02,59077.0,59066.0,0.0427]
[1723416551554,0.000828,59080.0,59079.0,0.3795746]
[1723416551559,0.000828,59080.0,59079.0,0.507793]
[1723416551748,0.000828,59080.0,59079.0,1.4484408]
[1723416552128,0.000828,59080.0,59079.0,1.50776568]
[1723416552349,0.000828,59080.0,59079.0,1.58606568]
[1723416552769,0.000828,59082.0,59081.0,0.8483056]
[1723416552977,0.000828,59082.0,59081.0,1.23502113]
[1723416553185,0.000828,59082.0,59081.0,1.67353913]
[1723416553631,0.000828,59082.0,59081.0,1.61422832]
[1723416554263,0.000828,59082.0,59081.0,1.6735387]
[1723416554482,0.000828,59082.0,59081.0,1.6875387]
[1723416554916,0.000828,59082.0,59081.0,1.48763852]
[1723416555124,0.000828,59082.0,59081.0,2.02602238]
[1723416555371,0.000828,59082.0,59081.0,1.70050438]
[1723416555581,0.000828,59082.0,59081.0,2.04728238]
[1723416555797,0.000828,59082.0,59081.0,2.03428238]
[1723416556003,0.00826,59083.0,59082.0,0.8482906]
[1723416556238,0.0001,59089.0,59087.0,0.338483]
[1723416556448,0.0018107,59091.0,59090.0,0.8821056]
[1723416556661,0.00011,59104.0,59099.0,0.846037]
[1723416556871,0.00011,59104.0,59099.0,1.79712239]
[1723416556872,0.0179894,59103.0,59099.0,1.79712239]
[1723416557083,0.0179894,59103.0,59099.0,1.82012239]
[1723416557296,0.00011,59104.0,59099.0,1.82012239]
[1723416557297,0.00011,59104.0,59099.0,2.19093739]
[1723416557525,0.00011,59104.0,59099.0,2.26093739]
[1723416557741,0.00011,59104.0,59099.0,2.32812666]
[1723416557951,0.01026,59100.0,59099.0,1.93648362]
[1723416558377,0.00026,59100.0,59099.0,1.79596692]
[1723416558589,0.01026,59100.0,59099.0,1.93647852]
[1723416558866,0.00026,59100.0,59099.0,1.95047852]
[1723416559081,0.01026,59100.0,59099.0,1.95047815]
[1723416559301,0.01026,59100.0,59099.0,1.93647815]
[1723416559506,0.00026,59100.0,59099.0,1.92247815]
[1723416559723,0.00026,59100.0,59099.0,1.93647815]
[1723416560127,0.00026,59100.0,59099.0,2.28889315]
[1723416560332,0.00026,59100.0,59099.0,2.30882315]
[1723416560537,0.08195646,59104.0,59103.0,1.184372]
[1723416560747,0.08195646,59104.0,59103.0,1.61169815]
[1723416560948,0.09195646,59104.0,59103.0,1.61169815]
[1723416561152,0.09195646,59104.0,59103.0,1.44788323]
[1723416561386,0.11194586,59104.0,59103.0,1.10949123]
[1723416561791,0.11194586,59104.0,59103.0,1.00949123]
[1723416562213,0.20244586,59104.0,59103.0,0.507588]
[1723416562630,0.20244586,59104.0,59103.0,0.169196]
[1723416562836,0.20044586,59104.0,59103.0,0.182196]
[1723416563046,0.20244586,59104.0,59103.0,0.534588]
[1723416563251,0.20244586,59104.0,59103.0,0.507588]
[1723416563455,0.20244586,59104.0,59103.0,0.521588]
[1723416563902,0.02011,59104.0,59103.0,0.85998]
[1723416564095,0.0280994,59104.0,59103.0,1.234372]
[1723416564907,0.0280994,59104.0,59103.0,1.37488856]
[1723416565329,0.0180994,59104.0,59103.0,1.221372]
[1723416565534,0.0280994,59104.0,59103.0,1.36188806]
[1723416565765,0.00826,59105.0,59103.0,1.53870095]
[1723416565980,0.00826,59107.0,59106.0,0.169187]
[1723416566193,0.01826,59107.0,59106.0,1.48494096]
[1723416566444,0.01826,59107.0,59106.0,1.82331596]
[1723416566867,0.00826,59107.0,59106.0,1.82331596]
[1723416567291,0.01826,59107.0,59106.0,1.85131596]
[1723416568357,0.00826,59107.0,59106.0,1.94331596]
[1723416568981,0.01826,59107.0,59106.0,1.94331596]
[1723416569214,0.0362494,59107.0,59106.0,1.68750104]
[1723416569423,0.01826,59107.0,59106.0,1.67350104]
[1723416569637,0.01826,59107.0,59106.0,1.82331596]
[1723416569638,0.00826,59107.0,59106.0,1.82331596]
[1723416569842,0.00826,59107.0,59106.0,1.83730868]
[1723416570068,0.0262494,59112.0,59111.0,1.184211]
[1723416570069,0.0162494,59112.0,59111.0,1.184211]
[1723416570294,0.0162494,59112.0,59111.0,1.307211]
[1723416570295,0.0362494,59112.0,59111.0,1.307211]
[1723416570504,0.0362494,59112.0,59111.0,1.44770421]
[1723416571820,0.0362494,59112.0,59111.0,1.307211]
[1723416572406,0.0362494,59112.0,59111.0,1.321211]
[1723416572618,0.0362494,59112.0,59111.0,1.307211]
[1723416572843,0.0362494,59112.0,59111.0,1.321211]
[1723416573057,0.0362494,59112.0,59111.0,1.315211]
[1723416573266,0.0262494,59112.0,59111.0,1.315211]
[1723416573498,0.0262494,59112.0,59111.0,1.46170265]
[1723416573715,0.0362494,59112.0,59111.0,1.46170265]
[1723416573927,0.0362494,59112.0,59111.0,1.47570265]
[1723416574430,0.0362494,59112.0,59111.0,1.46170265]
[1723416575062,0.0362494,59112.0,59111.0,1.44770265]
[1723416575519,0.0362494,59112.0,59111.0,1.46170265]
[1723416575770,0.00828,59128.0,59117.0,0.0908]
[1723416575999,0.08184646,59152.0,59134.0,0.094]
[1723416576000,0.0079894,59150.0,59134.0,0.094]
[1723416576219,0.49107874,59151.0,59148.0,1.391769]
[1723416576220,0.0180894,59149.0,59148.0,1.391769]
[1723416577308,0.0180894,59149.0,59148.0,1.414769]
[1723416577544,0.0180894,59149.0,59148.0,1.428769]
[1723416577791,0.0180894,59149.0,59148.0,1.090635]
[1723416578034,0.0180894,59149.0,59148.0,1.141835]
[1723416578309,0.0180894,59149.0,59148.0,1.28224957]
[1723416578764,0.0180894,59149.0,59148.0,1.137835]
[1723416579261,0.0180894,59149.0,59148.0,0.16342117]
[1723416579262,0.19356286,59149.0,59148.0,0.16342117]
[1723416579471,0.47577778,59149.0,59148.0,0.014]
[1723416579729,0.01,59136.0,59135.0,0.507313]
[1723416579964,0.0179894,59136.0,59135.0,1.48798511]
[1723416580415,0.0179894,59136.0,59135.0,1.34754592]
[1723416580606,0.0179894,59136.0,59135.0,1.67023365]
[1723416580833,0.01,59136.0,59135.0,1.67023365]
[1723416581068,0.0179894,59136.0,59135.0,1.61097612]
[1723416581287,0.01,59137.0,59136.0,0.507304]
[1723416581504,0.1343894,59137.0,59136.0,0.64774127]
[1723416581717,0.1363894,59137.0,59136.0,0.30953827]
[1723416582172,0.14482394,59137.0,59136.0,0.30953827]
[1723416582373,0.14482394,59137.0,59136.0,0.14043727]
[1723416582576,0.23762394,59137.0,59136.0,0.15443727]
[1723416582958,0.23762394,59137.0,59136.0,0.14043727]
[1723416583171,0.23762394,59137.0,59136.0,0.15443727]
[1723416583388,0.23762394,59137.0,59136.0,0.14043727]
[1723416583532,0.23762394,59137.0,59136.0,0.14943727]
[1723416583733,0.40672194,59137.0,59136.0,0.14943727]
[1723416583938,0.40672194,59137.0,59136.0,0.15343727]
[1723416584147,1.1649624,59137.0,59136.0,0.14443727]
[1723416584611,1.66697432,59137.0,59136.0,0.14443727]
[1723416584816,1.66697432,59137.0,59136.0,0.004]
[1723416585029,1.66697432,59137.0,59121.0,0.5489419]
[1723416585030,0.01,59122.0,59121.0,0.22840351]
[1723416585240,0.01,59122.0,59121.0,0.30962106]
[1723416585241,0.012,59122.0,59121.0,0.30962106]
[1723416585442,0.0203821,59122.0,59121.0,0.30962106]
[1723416585655,0.1153715,59122.0,59121.0,0.35113396]
[1723416585870,0.1153715,59122.0,59121.0,0.41041376]
[1723416586071,0.0079894,59125.0,59121.0,0.51494888]
[1723416586284,0.0079894,59125.0,59124.0,1.183952]
[1723416586490,0.0079894,59125.0,59124.0,1.69890088]
[1723416586688,0.0079894,59125.0,59124.0,1.34776692]
[1723416586895,0.0079894,59125.0,59124.0,1.69892715]
[1723416587095,0.0079894,59125.0,59124.0,1.73228267]
[1723416587736,0.0179894,59125.0,59124.0,1.74528267]
[1723416587946,0.0079894,59125.0,59124.0,1.74528267]
[1723416588170,0.0179894,59125.0,59124.0,1.24319575]
[1723416588369,0.0079894,59125.0,59124.0,1.24319575]
[1723416588735,0.0079894,59125.0,59124.0,1.25719575]
[1723416589835,0.0079894,59125.0,59124.0,1.59546775]
[1723416590246,0.0079894,59125.0,59124.0,1.69546775]
[1723416590455,0.0079894,59125.0,59124.0,1.69546387]
[1723416590673,0.0079894,59125.0,59124.0,1.34430752]
[1723416590886,0.01,59126.0,59125.0,1.183931]
[1723416591098,0.01,59126.0,59125.0,1.82189109]
[1723416592361,0.0179894,59126.0,59125.0,1.65807617]
[1723416592580,0.0179894,59126.0,59125.0,1.67207617]
[1723416593005,0.0179894,59126.0,59125.0,1.68407617]
[1723416593219,0.0179894,59126.0,59125.0,1.68408878]
[1723416593651,0.0199894,59126.0,59125.0,1.34582278]
[1723416594079,0.0199894,59126.0,59125.0,0.54629078]
[1723416594730,0.0199894,59126.0,59125.0,0.533399]
[1723416594935,0.0199894,59126.0,59125.0,0.88459153]
[1723416595139,0.0199894,59126.0,59125.0,0.54632553]
[1723416595353,0.0199894,59126.0,59125.0,0.56932553]
[1723416595756,0.1127894,59126.0,59125.0,0.37719253]
[1723416595985,0.1127894,59126.0,59125.0,0.54632553]
[1723416596190,0.1127894,59126.0,59125.0,0.37719253]
[1723416596410,0.1127894,59126.0,59125.0,0.54632553]
[1723416596830,0.1127894,59126.0,59125.0,0.87259153]
[1723416597086,0.1127894,59126.0,59125.0,0.53832553]
[1723416597539,0.1127894,59126.0,59125.0,0.53432553]
[1723416598185,0.1127894,59126.0,59125.0,0.53432768]
[1723416598402,0.1127894,59126.0,59125.0,0.52032768]
[1723416598861,0.1127894,59126.0,59125.0,0.85859368]
[1723416599066,0.1127894,59126.0,59125.0,0.52032768]
[1723416599273,0.1127894,59126.0,59125.0,0.85859368]
[1723416599513,0.1127894,59126.0,59125.0,0.87159368]
[1723416599727,0.1127894,59126.0,59125.0,0.86259368]
[1723416599940,0.1127894,59126.0,59125.0,0.87159368]
[1723416600139,0.1127894,59126.0,59125.0,0.52932768]
[1723416600369,0.1127894,59126.0,59125.0,0.86259368]
[1723416600804,0.1127894,59126.0,59125.0,0.52432768]
[1723416601024,0.1127894,59126.0,59125.0,0.169133]
[1723416601259,0.1127894,59126.0,59125.0,0.5243285]
[1723416601461,0.2276894,59126.0,59125.0,0.3551955]
[1723416601680,0.2276894,59126.0,59125.0,0.014]
[1723416601892,0.2276894,59126.0,59125.0,0.36520091]
[1723416602747,0.2276894,59126.0,59125.0,0.43348093]
[1723416602748,0.3968194,59126.0,59125.0,0.43348093]
[1723416602953,0.3968194,59126.0,59125.0,0.16348036]
[1723416603157,0.7350794,59126.0,59125.0,0.16348036]
[1723416603429,1.23715432,59126.0,59125.0,0.16348036]
[1723416605205,1.23715432,59126.0,59125.0,0.16439006]
[1723416606029,1.58541432,59126.0,59125.0,0.16439006]
[1723416606239,1.57541432,59126.0,59125.0,0.16439006]
[1723416606442,1.57541432,59126.0,59125.0,0.0239097]
[1723416606653,1.62450328,59126.0,59125.0,0.0239097]
[1723416606866,1.62450328,59126.0,59125.0,0.0199097]
[1723416606867,1.63450328,59126.0,59125.0,0.0199097]
[1723416607075,1.27624328,59126.0,59125.0,0.0199097]
[1723416607302,0.90189432,59126.0,59125.0,0.0199097]
[1723416607512,0.56363432,59126.0,59125.0,0.0199097]
[1723416607726,0.56363432,59126.0,59125.0,0.16041019]
[1723416607943,0.56363432,59126.0,59125.0,0.0009097]
[1723416607944,1.57841432,59126.0,59125.0,0.0009097]
[1723416608356,1.24015432,59126.0,59125.0,0.0009097]
[1723416608811,0.90189432,59126.0,59125.0,0.0009097]
[1723416609032,1.24015432,59126.0,59125.0,0.0009097]
[1723416609272,0.90189432,59126.0,59125.0,0.0009097]
[1723416609708,0.90189432,59126.0,59125.0,0.14140845]
[1723416609709,0.89889432,59126.0,59125.0,0.14140845]
[1723416609971,0.90189432,59126.0,59125.0,0.14240845]
[1723416610667,1.24015432,59126.0,59125.0,0.14240845]
[1723416610881,1.24015432,59126.0,59125.0,0.0009097]
[1723416610882,1.25715432,59126.0,59125.0,0.0009097]
[1723416611136,1.26715432,59126.0,59125.0,0.0009097]
[1723416611366,1.63633519,59126.0,59125.0,0.0009097]
[1723416611580,1.60741432,59126.0,59125.0,0.0009097]
[1723416611820,1.60741432,59126.0,59125.0,0.0039097]
[1723416611821,2.32741432,59126.0,59125.0,0.0039097]
[1723416612034,2.35633439,59126.0,59125.0,0.0009097]
[1723416612246,2.35633811,59126.0,59125.0,0.0009097]
[1723416612899,2.35733811,59126.0,59125.0,0.0009097]
[1723416613117,2.35533811,59126.0,59125.0,0.0009097]
[1723416613541,2.35833811,59126.0,59125.0,0.0009097]
[1723416613775,2.35733811,59126.0,59125.0,0.0009097]
[1723416613988,2.35433811,59126.0,59125.0,0.0009097]
[1723416614189,2.35433811,59126.0,59125.0,0.0019097]
[1723416614190,2.74591411,59126.0,59125.0,0.0019097]
[1723416614392,2.69559811,59126.0,59125.0,0.0019097]
[1723416614807,2.69259811,59126.0,59125.0,0.0009097]
[1723416615010,2.35833811,59126.0,59125.0,0.0029097]
[1723416615220,2.36833093,59126.0,59125.0,0.0029097]
[1723416615430,2.33840714,59126.0,59125.0,0.0019097]
[1723416615636,2.70568379,59126.0,59125.0,0.0019097]
[1723416615823,2.36842379,59126.0,59125.0,0.0029097]
[1723416616063,2.36842379,59126.0,59125.0,0.0019097]
[1723416616267,2.36742379,59126.0,59125.0,0.0019097]
[1723416616477,2.36542379,59126.0,59125.0,0.0019097]
[1723416616701,2.36542379,59126.0,59125.0,0.0009097]
[1723416616936,2.36842379,59126.0,59125.0,0.0019097]
[1723416617182,2.36842379,59126.0,59125.0,0.0029097]
[1723416617183,2.36942379,59126.0,59125.0,0.0029097]
[1723416617424,2.36642379,59126.0,59125.0,0.0019097]
[1723416617644,2.36942379,59126.0,59125.0,0.0029097]
[1723416618110,2.36642379,59126.0,59125.0,0.0019097]
[1723416618306,2.36442379,59126.0,59125.0,0.0019097]
[1723416618531,2.36742379,59126.0,59125.0,0.0029097]
[1723416618773,2.36842379,59126.0,59125.0,0.0019097]
[1723416619186,2.36942783,59126.0,59125.0,0.0029097]
[1723416619593,2.36642783,59126.0,59125.0,0.0019097]
[1723416619984,2.36942783,59126.0,59125.0,0.0029097]
[1723416621531,2.36642783,59126.0,59125.0,0.0019097]
[1723416621685,2.34642783,59126.0,59125.0,0.0019097]
[1723416622298,2.36642783,59126.0,59125.0,0.0019097]
[1723416622719,2.36640925,59126.0,59125.0,0.0019097]
[1723416622926,2.36440925,59126.0,59125.0,0.0009097]
[1723416623338,2.36840831,59126.0,59125.0,0.0029097]
[1723416624006,2.36540831,59126.0,59125.0,0.0019097]
[1723416624351,2.36840831,59126.0,59125.0,0.0029097]
[1723416624554,2.36740831,59126.0,59125.0,0.0019097]
[1723416625005,2.70666831,59126.0,59125.0,0.0029097]
[1723416625188,2.36840831,59126.0,59125.0,0.0029097]
[1723416625550,2.36840831,59126.0,59125.0,0.0009097]
[1723416625551,2.36440831,59126.0,59125.0,0.0009097]
[1723416625752,2.36440831,59126.0,59125.0,0.0019097]
[1723416625753,2.36540831,59126.0,59125.0,0.0019097]
[1723416625948,2.36840831,59126.0,59125.0,0.0029097]
[1723416626433,2.36657965,59126.0,59125.0,0.0029097]
[1723416626851,2.34957965,59126.0,59125.0,0.0039097]
[1723416627062,2.36957965,59126.0,59125.0,0.0039097]
[1723416627274,2.36657965,59126.0,59125.0,0.0029097]
[1723416627496,2.36657965,59126.0,59125.0,0.0039097]
[1723416627737,2.36757965,59126.0,59125.0,0.0019097]
[1723416628144,2.70683965,59126.0,59125.0,0.0029097]
[1723416628389,2.70683965,59126.0,59125.0,0.0019097]
[1723416628548,2.70683965,59126.0,59125.0,0.0029097]
[1723416628786,2.36657965,59126.0,59125.0,0.0019097]
[1723416629207,2.36957965,59126.0,59125.0,0.0029097]
[1723416629373,2.70783965,59126.0,59125.0,0.0029097]
[1723416629545,2.70783965,59126.0,59125.0,0.0019097]
[1723416629759,2.70483965,59126.0,59125.0,0.0019097]
[1723416629956,3.25389965,59126.0,59125.0,0.0029097]
[1723416630186,3.25389965,59126.0,59124.0,4e-07]
[1723416630187,1.7755864,59125.0,59124.0,4e-07]
[1723416630386,1.7755864,59125.0,59109.0,0.0009097]
[1723416630387,1.0792694,59110.0,59109.0,0.0009097]
[1723416630594,2.2804866,59110.0,59109.0,0.0009097]
[1723416631018,1.0587346,59110.0,59109.0,0.0009097]
[1723416631219,1.02968432,59110.0,59109.0,0.0009097]
[1723416631820,1.04683037,59110.0,59109.0,0.0009097]
[1723416632252,1.07578261,59110.0,59109.0,0.0019097]
[1723416632454,1.09078261,59110.0,59109.0,0.0029097]
[1723416632899,1.08978261,59110.0,59109.0,0.0019097]
[1723416633107,1.07678261,59110.0,59109.0,0.0009097]
[1723416633290,1.41513461,59110.0,59109.0,0.0009097]
[1723416633497,1.38618237,59110.0,59109.0,0.0009097]
[1723416633723,1.41511081,59110.0,59109.0,0.0009097]
[1723416633928,1.52851081,59110.0,59109.0,0.0019097]
[1723416634179,2.29851081,59110.0,59109.0,0.0019097]
[1723416634855,2.30051081,59110.0,59109.0,0.0019097]
[1723416635133,2.29751081,59110.0,59109.0,0.0019097]
[1723416635361,2.29351081,59110.0,59109.0,0.0009097]
[1723416635592,2.30051081,59110.0,59109.0,0.0019097]
[1723416636057,2.29351081,59110.0,59109.0,0.0009097]
[1723416636517,2.29951081,59110.0,59109.0,0.0019097]
[1723416637227,2.27058237,59110.0,59109.0,0.0019097]
[1723416637475,2.29951495,59110.0,59109.0,0.0019097]
[1723416638580,1.52951495,59110.0,59109.0,0.0019097]
[1723416639013,2.16951495,59110.0,59109.0,0.0019097]
[1723416639442,2.15951495,59110.0,59109.0,0.0019097]
[1723416639687,2.16951495,59110.0,59109.0,0.0019097]
[1723416639927,2.15951495,59110.0,59109.0,0.0019097]
[1723416640398,1.08376295,59110.0,59109.0,0.0019097]
[1723416640603,1.08376295,59110.0,59109.0,0.14244614]
[1723416641006,1.08376295,59110.0,59109.0,0.0019097]
[1723416641463,1.42211495,59110.0,59109.0,0.0019097]
[1723416642317,2.2519456,59110.0,59109.0,0.0019097]
[1723416645043,2.25198051,59110.0,59109.0,0.0019097]
[1723416646464,2.36258051,59110.0,59109.0,0.0019097]
[1723416647270,2.3626483,59110.0,59109.0,0.0019097]
[1723416647856,2.36264646,59110.0,59109.0,0.0019097]
[1723416648321,2.33378237,59110.0,59109.0,0.0019097]
[1723416648529,2.36270614,59110.0,59109.0,0.0019097]
[1723416649548,2.37270614,59110.0,59109.0,0.0019097]
[1723416652063,2.37277301,59110.0,59109.0,0.0019097]
[1723416652316,2.36277301,59110.0,59109.0,0.0019097]
[1723416652556,2.37299359,59110.0,59109.0,0.0019097]
[1723416652795,2.36277301,59110.0,59109.0,0.0019097]
[1723416653018,1.08382101,59110.0,59109.0,0.0019097]
[1723416653239,1.42217301,59110.0,59109.0,0.0019097]
[1723416654153,1.08382101,59110.0,59109.0,0.0019097]
[1723416655271,1.05483037,59110.0,59109.0,0.0019097]
[1723416655931,0.04313545,59110.0,59109.0,0.0019097]
[1723416656334,0.04313545,59110.0,59109.0,0.1710877]
[1723416656588,0.02514605,59110.0,59109.0,1.39751662]
[1723416656813,0.02514605,59110.0,59109.0,1.83587362]
[1723416656973,0.008,59110.0,59109.0,1.91188056]
[1723416657171,0.008,59110.0,59109.0,1.83587362]
[1723416657381,0.002,59110.0,59109.0,1.88554518]
[1723416657577,0.008,59110.0,59109.0,1.83587362]
[1723416657800,0.008,59110.0,59109.0,1.88654518]
[1723416658338,0.002,59110.0,59109.0,1.83487362]
[1723416658555,0.01,59111.0,59110.0,1.251032]
[1723416658765,0.0079894,59113.0,59110.0,1.251032]
[1723416658766,0.0079894,59113.0,59112.0,0.84585]
[1723416658978,0.0179894,59113.0,59112.0,1.25099]
[1723416659174,0.0179894,59113.0,59112.0,1.27399]
[1723416659384,0.0079894,59115.0,59114.0,0.845822]
[1723416659588,0.08184646,59124.0,59114.0,0.845822]
[1723416659589,0.0079894,59122.0,59121.0,0.507433]
[1723416659792,0.01,59123.0,59121.0,1.289467]
[1723416659997,0.0179894,59123.0,59122.0,0.957507]
[1723416660192,0.0199894,59123.0,59122.0,1.29579]
[1723416660731,0.0199894,59123.0,59122.0,0.596224]
[1723416661168,0.0199894,59123.0,59122.0,0.39842279]
[1723416661367,0.0199894,59123.0,59122.0,0.14048179]
[1723416661567,0.54164809,59123.0,59122.0,0.14048179]
[1723416661970,0.54264809,59123.0,59122.0,0.15248179]
[1723416662167,0.54264809,59123.0,59122.0,0.012]
[1723416662366,0.20437109,59123.0,59122.0,0.004]
[1723416662568,0.169142,59122.0,59119.0,0.27000199]
[1723416662768,0.001,59120.0,59119.0,0.27000199]
[1723416663016,0.0199894,59120.0,59119.0,0.27000199]
[1723416663254,0.0199894,59120.0,59119.0,0.43915199]
[1723416663449,0.03223309,59120.0,59119.0,0.43915199]
[1723416663655,0.03223309,59120.0,59119.0,0.17915]
[1723416663862,0.03223309,59120.0,59119.0,0.01]
[1723416664077,0.0179894,59120.0,59119.0,0.17915]
[1723416664293,0.03223309,59120.0,59119.0,0.17915]
[1723416664766,0.0179894,59120.0,59119.0,0.17915]
[1723416664982,0.0179894,59120.0,59119.0,0.16915]
[1723416665266,0.0179894,59120.0,59119.0,0.32064457]
[1723416665516,0.002,59120.0,59119.0,1.43944251]
[1723416665764,0.002,59120.0,59119.0,2.11265949]
[1723416666007,0.000828,59124.0,59123.0,1.547769]
[1723416666241,0.000828,59124.0,59123.0,1.73458392]
[1723416666488,0.010828,59124.0,59123.0,1.71121757]
[1723416666751,0.010828,59124.0,59123.0,1.81121757]
[1723416666752,0.000828,59124.0,59123.0,1.81121757]
[1723416667507,0.010828,59124.0,59123.0,1.68122896]
[1723416667754,0.010828,59124.0,59123.0,1.82169457]
[1723416668732,0.000828,59124.0,59123.0,1.83569457]
[1723416669187,0.000828,59124.0,59123.0,1.99950949]
[1723416669428,0.001828,59124.0,59123.0,2.35178649]
[1723416669684,0.001828,59124.0,59123.0,2.07278196]
[1723416669915,0.001828,59124.0,59123.0,2.38305896]
[1723416670125,0.000828,59124.0,59123.0,2.38305896]
[1723416670343,0.000827,59129.0,59128.0,1.183871]
[1723416670573,0.000827,59129.0,59128.0,2.10260053]
[1723416671041,0.000827,59129.0,59128.0,2.10257601]
[1723416671219,0.000827,59129.0,59128.0,1.76432701]
[1723416671656,0.000827,59129.0,59128.0,1.82358514]
[1723416671859,0.000827,59129.0,59128.0,2.17583414]
[1723416672079,0.000827,59129.0,59128.0,1.83558514]
[1723416672080,0.001827,59129.0,59128.0,1.83558514]
[1723416672293,0.001827,59129.0,59128.0,1.7903242]
[1723416672497,0.001827,59129.0,59128.0,2.1285732]
[1723416672711,0.000827,59129.0,59128.0,1.82358514]
[1723416672920,0.000827,59129.0,59128.0,1.7923242]
[1723416673819,0.000827,59129.0,59128.0,1.79233415]
[1723416674234,0.000827,59129.0,59128.0,1.76433415]
[1723416674677,0.001827,59129.0,59128.0,1.79033415]
[1723416674890,0.001827,59129.0,59128.0,1.79033107]
[1723416675104,0.001827,59129.0,59128.0,1.80433107]
[1723416675757,0.000827,59129.0,59128.0,1.79233107]
[1723416676016,0.001827,59129.0,59128.0,1.77833107]
[1723416676465,0.001827,59129.0,59128.0,1.63788592]
[1723416676674,0.001827,59129.0,59128.0,1.77832639]
[1723416677296,0.000827,59129.0,59128.0,1.77832639]
[1723416677519,0.000827,59129.0,59128.0,1.77632639]
[1723416677724,0.001827,59129.0,59128.0,1.77632639]
[1723416677929,0.001827,59129.0,59128.0,1.79032639]
[1723416678134,0.000827,59129.0,59128.0,1.77832639]
[1723416678339,0.001827,59129.0,59128.0,1.79232639]
[1723416678596,0.001827,59129.0,59128.0,2.11657539]
[1723416678811,0.000827,59129.0,59128.0,1.82358819]
[1723416679017,0.000827,59129.0,59128.0,1.83758819]
[1723416679223,0.001827,59129.0,59128.0,2.17583719]
[1723416679426,0.001827,59129.0,59128.0,2.11657534]
[1723416679895,0.0079894,59142.0,59141.0,1.183609]
[1723416680110,0.000927,59149.0,59148.0,0.507201]
[1723416680309,0.000927,59149.0,59148.0,1.87960378]
[1723416680528,0.000927,59149.0,59148.0,1.97200378]
[1723416681195,0.000927,59149.0,59148.0,1.98546378]
[1723416681651,0.001927,59149.0,59148.0,1.99946378]
[1723416681875,0.001927,59149.0,59148.0,2.01346378]
[1723416682088,0.000927,59149.0,59148.0,1.98546378]
[1723416682299,0.000927,59149.0,59148.0,1.99946378]
[1723416682522,0.000927,59149.0,59148.0,2.33759778]
[1723416682754,0.000927,59149.0,59148.0,2.2075368]
[1723416682962,0.0134595,59153.0,59152.0,1.2564986]